bitfinex/quotes_SOLUSD_20250514
["timestamp","ask_amount","ask_price","bid_price","bid_amount"]
[1747230357044,41.61719588,178.4,178.33,1.5422]
[1747230357199,5.60506698,178.41,178.33,1.5422]
[1747230357398,5.60506698,178.41,178.36,41.61719588]
[1747230357641,5.60506698,178.41,178.33,1.5422]
[1747230357850,61.23493031,178.41,178.33,1.5422]
[1747230358145,61.23493031,178.41,178.36,41.61719588]
[1747230358506,61.23493031,178.41,178.35,41.61719588]
[1747230358711,19.61773443,178.41,178.26,40.66]
[1747230359007,19.61993384,178.39,178.27,46.20946878]
[1747230359229,5.60569538,178.39,178.37,41.61719588]
[1747230359539,5.60569538,178.39,178.38,41.61719588]
[1747230359843,28.30457292,178.45,178.38,41.61719588]
[1747230359844,5.60412463,178.44,178.38,41.61719588]
[1747230360142,19.60963467,178.49,178.43,41.61719588]
[1747230360342,19.60963467,178.49,178.38,1.5775]
[1747230360343,19.60963467,178.49,178.45,29.07977664]
[1747230360530,26.0,178.46,178.38,1.5775]
[1747230360913,5.60381059,178.45,178.39,29.07977664]
[1747230361134,5.60381059,178.45,178.35,29.07977664]
[1747230361135,29.07977664,178.4,178.35,29.07977664]
[1747230361446,28.83613672,178.39,178.33,28.83613672]
[1747230361611,26.0,178.42,178.36,28.83613672]
[1747230361809,28.83613672,178.43,178.37,28.83613672]
[1747230362115,28.83613672,178.44,178.38,28.83613672]
[1747230362335,28.83613672,178.43,178.38,28.83613672]
[1747230362511,19.61333706,178.45,178.29,36.82643672]
[1747230362512,28.83613672,178.42,178.37,28.83613672]
[1747230362712,47.63239001,178.45,178.38,28.83613672]
[1747230362907,48.45607056,178.39,178.29,36.82643672]
[1747230363146,28.83613672,178.38,178.33,28.83613672]
[1747230363329,28.8332517,178.38,178.33,28.8332517]
[1747230363639,5.60569538,178.39,178.37,28.8332517]
[1747230363944,138.0,178.38,178.29,7.9903]
[1747230364104,28.8391508,178.35,178.23,1.581]
[1747230364449,26.0,178.36,178.23,1.581]
[1747230364450,28.8391508,178.31,178.23,1.581]
[1747230364633,28.8391508,178.31,178.26,28.8391508]
[1747230364812,28.8391508,178.33,178.27,28.8391508]
[1747230365009,5.60789591,178.32,178.28,28.8391508]
[1747230365208,48.4667865,178.32,178.27,28.8391508]
[1747230365414,48.4667865,178.32,178.23,1.581]
[1747230365415,28.8391508,178.3,178.23,1.581]
[1747230365639,19.6276357,178.32,178.26,28.8391508]
[1747230365930,5.60789591,178.32,178.28,28.8391508]
[1747230366144,5.60789591,178.32,178.3,28.8391508]
[1747230366459,5.60726701,178.34,178.23,7.19171837]
[1747230366613,5.60726701,178.34,178.32,28.8391508]
[1747230366932,19.62323389,178.36,178.32,28.8391508]
[1747230367117,28.8391508,178.33,178.23,1.581]
[1747230367312,28.8391508,178.31,178.25,28.8391508]
[1747230367916,28.8391508,178.31,178.26,28.8391508]
[1747230368116,0.28432314,178.34,178.25,28.8391508]
[1747230368340,28.8391508,178.31,178.26,28.8391508]
[1747230368950,28.8391508,178.31,178.23,1.581]
[1747230368951,5.60726701,178.34,178.3,28.8391508]
[1747230369240,5.60726701,178.34,178.31,28.84019643]
[1747230369454,5.60726701,178.34,178.32,28.84019643]
[1747230369948,5.60726701,178.34,178.25,5.61001532]
[1747230370124,143.60700717,178.35,178.33,28.84019643]
[1747230370331,138.0,178.35,178.34,28.84019643]
[1747230371351,138.0,178.44,178.35,7.9484]
[1747230371517,5.60381059,178.45,178.43,28.84019643]
[1747230371722,5.60286866,178.48,178.38,28.84019643]
[1747230372135,5.60286866,178.48,178.45,28.84019643]
[1747230372345,19.61004033,178.48,178.38,28.84019643]
[1747230372645,48.45023676,178.48,178.43,28.84019643]
[1747230372843,28.84019643,178.46,178.35,7.9484]
[1747230373050,48.45683133,178.42,178.35,7.9484]
[1747230373360,28.84019643,178.4,178.35,7.9484]
[1747230373657,28.84019643,178.37,178.32,28.84019643]
[1747230373844,28.84019643,178.36,178.29,6.3152]
[1747230374049,28.84019643,178.34,178.28,30.46929643]
[1747230374248,28.84019643,178.33,178.28,30.46929643]
[1747230375147,28.84019643,178.34,178.28,30.46929643]
[1747230375346,28.84019643,178.35,178.3,28.84019643]
[1747230375645,19.62213376,178.37,178.33,28.84019643]
[1747230375823,48.46233019,178.37,178.32,28.84019643]
[1747230376019,28.84019643,178.35,178.28,1.6291]
[1747230376230,28.84019643,178.32,178.28,1.6291]
[1747230376622,28.84019643,178.3,178.25,28.84019643]
[1747230377151,5.60883953,178.29,178.25,28.84019643]
[1747230378242,54.84019643,178.26,178.17,6.3369]
[1747230378560,26.0,178.17,177.98,10.0]
[1747230378843,18.933972,178.16,178.02,28.84019643]
[1747230379146,5.61450788,178.11,178.07,28.84019643]
[1747230379359,34.45470431,178.11,178.06,28.84019643]
[1747230379570,28.84019643,178.07,178.01,34.60251718]
[1747230379855,26.0,178.08,178.01,63.44271361]
[1747230380064,57.68039286,178.06,178.01,34.60251718]
[1747230380222,83.964716,178.04,178.01,34.60251718]
[1747230380560,44.64964886,177.97,177.96,51.90377577]
[1747230380737,26.28432314,177.97,177.96,51.90377577]
[1747230380932,55.12451957,177.97,177.96,44.25562166]
[1747230381125,53.39309296,177.97,177.96,20.20142166]
[1747230381325,53.39309296,177.97,177.96,17.72142156]
[1747230381524,53.39309296,177.97,177.96,7.64546556]
[1747230381725,34.7434441,177.97,177.96,7.64546556]
[1747230382025,34.7434441,177.97,177.89,0.5]
[1747230382026,26.0,177.94,177.89,0.5]
[1747230382252,28.84019643,177.92,177.89,0.5]
[1747230382447,5.61892453,177.97,177.89,0.5]
[1747230382950,28.84019643,177.92,177.89,0.5]
[1747230383153,5.61797752,178.0,177.89,29.34019643]
[1747230383323,28.84019643,177.96,177.89,0.5]
[1747230383526,28.84019643,177.96,177.9,28.84019643]
[1747230383752,28.84019643,177.94,177.83,5.62307606]
[1747230383965,28.84019643,177.92,177.83,5.62307606]
[1747230384247,8.47497672,177.94,177.84,28.84019643]
[1747230384814,8.47497672,177.94,177.9,28.84019643]
[1747230384920,8.47497672,177.94,177.89,28.84019643]
[1747230384921,8.47497672,177.92,177.89,28.84019643]
[1747230385250,8.47497672,177.92,177.91,28.84019643]
[1747230385471,8.47497672,177.92,177.85,5.62271577]
[1747230385750,8.47497672,177.92,177.81,61.00953613]
[1747230385751,28.84019643,177.9,177.81,8.6697199]
[1747230385961,26.0,177.89,177.81,8.6697199]
[1747230386152,26.0,177.88,177.81,37.50991633]
[1747230386357,5.6205678,177.92,177.87,28.84019643]
[1747230386752,34.46076423,177.92,177.86,28.84019643]
[1747230386958,26.0,177.88,177.81,8.6697199]
[1747230387165,28.84019643,177.87,177.81,8.6697199]
[1747230387373,26.0,177.88,177.81,8.6697199]
[1747230387655,26.0,177.91,177.85,28.84019643]
[1747230387863,54.84019643,177.91,177.85,28.84019643]
[1747230388069,28.84019643,177.93,177.87,28.84019643]
[1747230388360,28.84019643,177.91,177.81,8.6697199]
[1747230388571,28.84019643,177.9,177.81,8.6697199]
[1747230388785,28.84019643,177.94,177.88,28.84019643]
[1747230389081,19.66642735,177.97,177.81,28.35362607]
[1747230389245,28.84019643,177.91,177.81,14.29367444]
[1747230389445,28.84019643,177.9,177.81,14.29367444]
[1747230389681,28.84019643,177.93,177.87,28.84019643]
[1747230389847,28.84019643,177.94,177.89,28.84019643]
[1747230390178,19.66642735,177.97,177.81,14.29367444]
[1747230390179,28.84019643,177.91,177.86,28.84019643]
[1747230390756,26.0,177.95,177.89,28.84019643]
[1747230390974,138.0,177.96,177.91,28.84019643]
[1747230391151,143.61931373,177.96,177.85,5.62271577]
[1747230391351,143.61931373,177.96,177.92,28.84019643]
[1747230391663,28.84019643,177.99,177.94,28.84019643]
[1747230391857,28.84019643,178.01,177.96,28.84019643]
[1747230392078,28.84019643,178.02,177.95,0.39855073]
[1747230392256,42.93180265,178.05,177.93,28.84019643]
[1747230392585,28.84019643,178.04,177.99,28.84019643]
[1747230393077,14.09160622,178.05,177.89,38.9]
[1747230393078,28.84019643,178.03,177.89,38.9]
[1747230393279,5.61734636,178.02,177.9,18.64964886]
[1747230393583,28.84019643,178.03,177.98,28.84019643]
[1747230393768,26.0,178.04,177.98,28.84019643]
[1747230393961,26.0,178.04,177.93,28.84019643]
[1747230393962,28.84019643,178.04,177.93,28.84019643]
[1747230394160,152.03713899,178.1,178.01,28.84019643]
[1747230394386,28.84019643,178.06,177.93,28.84019643]
[1747230394591,152.03713899,178.1,178.03,28.84019643]
[1747230394761,5.61513841,178.09,178.06,28.84019643]
[1747230394955,5.61513841,178.09,177.97,38.14]
[1747230394956,28.84019643,178.08,177.97,38.14]
[1747230395176,5.61608446,178.06,178.02,28.84019643]
[1747230395571,34.45592008,178.08,178.03,28.84019643]
[1747230395868,5.61515389,178.09,178.07,28.84019643]
[1747230396080,5.61515389,178.09,177.97,43.75889206]
[1747230396276,5.61515389,178.09,178.05,28.84019643]
[1747230396593,28.84019643,178.07,177.93,28.84019643]
[1747230396760,28.84019643,178.07,178.02,28.84019643]
[1747230396959,28.84019643,178.07,177.94,38.2]
[1747230397179,19.65299992,178.09,178.03,28.84019643]
[1747230397180,28.84019643,178.08,178.03,28.84019643]
[1747230397386,19.65519176,178.07,177.94,43.81959523]
[1747230397557,28.84019643,178.06,178.01,28.84019643]
[1747230397755,5.61576907,178.07,178.03,28.84019643]
[1747230397953,34.4559655,178.07,178.02,28.84019643]
[1747230398259,28.84019643,178.06,177.94,38.0]
[1747230398569,5.61576907,178.07,178.03,28.84019643]
[1747230398875,5.61576907,178.07,178.04,28.84019643]
[1747230399081,28.84019643,178.11,178.06,28.84019643]
[1747230399287,19.64873707,178.13,178.08,28.84019643]
[1747230399598,5.61324726,178.15,178.12,28.84019643]
[1747230399750,28.84019643,178.2,178.14,28.84019643]
[1747230399954,28.84019643,178.19,178.14,28.84019643]
[1747230400158,47.68850986,178.24,178.14,28.84019643]
[1747230400469,47.68850986,178.24,178.16,28.84019643]
[1747230400470,28.84019643,178.21,178.16,28.84019643]
[1747230400671,28.84019643,178.2,178.06,18.64964886]
[1747230400878,28.84019643,178.22,178.17,28.84019643]
[1747230401074,19.63644523,178.24,178.17,28.84019643]
[1747230401288,14.02603231,178.24,178.14,28.84019643]
[1747230401593,28.84019643,178.18,178.13,28.84019643]
[1747230401801,28.84019643,178.19,178.14,28.84019643]
[1747230402108,28.84019643,178.2,178.15,28.84019643]
[1747230402263,28.84019643,178.23,178.18,28.84019643]
[1747230402461,19.63534361,178.25,178.09,5.6150976]
[1747230402772,28.84019643,178.18,178.12,28.84019643]
[1747230402982,28.84019643,178.16,178.11,28.84019643]
[1747230403186,28.84019643,178.2,178.1,28.84019643]
[1747230403372,28.84019643,178.17,178.12,28.84019643]
[1747230403556,28.84019643,178.16,178.09,37.52]
[1747230403869,45.63754698,178.23,178.12,28.84019643]
[1747230404078,45.63754698,178.23,178.09,43.13496742]
[1747230404282,47.69118553,178.23,178.13,28.84019643]
[1747230404587,28.84019643,178.16,178.1,37.4]
[1747230405281,28.84019643,178.15,178.1,66.24019643]
[1747230405468,5.61326294,178.15,178.1,66.24019643]
[1747230405894,28.84019643,178.14,178.08,37.3]
[1747230406204,34.45345937,178.15,178.1,28.84019643]
[1747230406359,26.0,178.24,178.12,28.84019643]
[1747230406563,28.84019643,178.17,178.12,28.84019643]
[1747230406805,28.84019643,178.18,178.13,28.84019643]
[1747230406996,19.63644523,178.24,178.15,28.84019643]
[1747230406997,28.84019643,178.2,178.15,28.84019643]
[1747230407170,28.84019643,178.19,178.14,28.84019643]
[1747230407370,34.45224692,178.19,178.09,5.61513841]
[1747230407597,28.84019643,178.2,178.1,18.64964886]
[1747230407797,28.84019643,178.2,178.15,28.84019643]
[1747230407985,28.84019643,178.21,178.16,28.84019643]
[1747230408169,138.0,178.22,178.17,8.067]
[1747230408609,34.49126842,178.28,178.17,8.067]
[1747230408765,5.60882644,178.3,178.18,18.64964886]
[1747230408972,28.88208236,178.29,178.18,18.64964886]
[1747230409167,28.88208236,178.28,178.17,55.927]
[1747230409599,5.60889345,178.29,178.18,5.61230216]
[1747230409818,28.88208236,178.28,178.18,5.61230216]
[1747230410096,48.51307463,178.29,178.17,45.927]
[1747230410289,28.88208236,178.25,178.17,45.927]
[1747230410489,28.88208236,178.24,178.17,45.927]
[1747230410691,28.88208236,178.22,178.17,45.927]
[1747230410894,28.88208236,178.23,178.17,45.927]
[1747230411102,28.88208236,178.24,178.17,51.5394128]
[1747230411295,28.88208236,178.22,178.17,45.927]
[1747230411490,5.61167227,178.2,178.17,45.927]
[1747230411705,5.61041292,178.24,178.17,45.927]
[1747230411892,28.88208236,178.22,178.17,45.927]
[1747230412231,28.03454375,178.36,178.17,51.51482132]
[1747230412517,28.88208236,178.28,178.17,51.51482132]
[1747230412996,26.0,178.34,178.17,61.51482132]
[1747230413196,28.88208236,178.28,178.17,61.51482132]
[1747230413604,5.60946878,178.27,178.17,51.51482132]
[1747230413785,14.020385,178.32,178.18,18.64964886]
[1747230413981,28.88208236,178.28,178.17,51.51482132]
[1747230414182,28.88208236,178.25,178.18,36.54]
[1747230414411,28.88208236,178.24,178.18,36.54]
[1747230414614,28.88208236,178.21,178.17,8.04231354]
[1747230415116,28.88208236,178.22,178.17,8.04231354]
[1747230415616,28.88208236,178.19,178.17,8.04231354]
[1747230415786,28.88208236,178.18,178.11,79.4729]
[1747230415988,28.88208236,178.16,178.11,79.4729]
[1747230416194,28.88208236,178.17,178.11,79.4729]
[1747230416519,28.88208236,178.2,178.11,43.1129]
[1747230416688,28.88208236,178.12,178.05,6.2137]
[1747230416894,28.88208236,178.1,178.05,6.2137]
[1747230417093,28.88208236,178.11,178.05,6.2137]
[1747230417487,28.88208236,178.12,178.05,6.2137]
[1747230417709,28.88208236,178.09,178.05,6.2137]
[1747230418215,28.88208236,178.07,178.05,6.2137]
[1747230418384,28.88208236,178.06,178.05,6.2137]
[1747230419005,28.88208236,178.11,178.02,1.5375]
[1747230419192,28.88208236,178.06,178.02,1.5375]
[1747230419402,28.88208236,178.07,178.02,1.5375]
[1747230419615,28.88208236,178.06,178.02,1.5375]
[1747230419824,28.88208236,178.05,178.02,1.5375]
[1747230419991,28.88208236,178.03,178.02,1.5375]
[1747230420184,28.88208236,178.03,177.99,43.3096]
[1747230420623,28.88208236,178.0,177.99,6.5296]
[1747230420915,54.88208236,178.0,177.91,6.3723]
[1747230421128,28.88208236,177.92,177.87,1.5292]
[1747230421293,28.88208236,177.91,177.87,1.5292]
[1747230421487,5.61860883,177.98,177.87,7.15118769]
[1747230421725,28.88208236,177.93,177.87,7.15118769]
[1747230422027,28.88208236,177.94,177.87,1.5292]
[1747230422212,28.88208236,177.97,177.87,7.15126062]
[1747230422518,28.88208236,177.96,177.87,7.15126062]
[1747230422819,28.88208236,177.97,177.87,7.15126062]
[1747230422990,28.88208236,177.99,177.87,7.15126062]
[1747230423197,28.88208236,178.0,177.88,18.79181043]
[1747230423401,28.88208236,178.03,177.91,26.0]
[1747230423591,28.88208236,178.0,177.91,5.62081951]
[1747230424105,28.88208236,177.95,177.88,5.62176748]
[1747230424434,28.88208236,178.02,177.88,24.27141634]
[1747230424589,28.88208236,177.99,177.88,24.27141634]
[1747230424935,28.88208236,177.97,177.88,5.62176748]
[1747230425216,28.88208236,177.95,177.89,35.48]
[1747230425425,28.88208236,177.98,177.89,35.48]
[1747230425725,28.88208236,178.04,177.92,0.14216157]
[1747230425924,28.88208236,178.03,177.92,0.14216157]
[1747230426116,5.61639988,178.05,177.9,5.62113546]
[1747230426330,28.88208236,178.01,177.9,5.62113546]
[1747230426520,28.88208236,178.01,177.91,18.64964886]
[1747230426919,28.88208236,177.99,177.92,35.26]
[1747230427139,28.88208236,178.0,177.92,35.26]
[1747230427632,34.49936272,178.03,177.93,5.62018771]
[1747230427934,28.88208236,178.04,177.94,18.64964886]
[1747230428118,28.88208236,178.08,177.97,1.5117]
[1747230428299,28.88208236,178.08,177.98,35.8]
[1747230428500,28.88208236,178.07,177.98,35.8]
[1747230428702,28.88208236,178.02,177.98,35.8]
[1747230428917,5.61482313,178.1,177.98,35.8]
[1747230429413,5.6138775,178.13,178.01,18.64964886]
[1747230429612,5.61293219,178.16,178.02,5.61734636]
[1747230429807,5.61293219,178.16,178.05,26.0]
[1747230430136,28.88208236,178.17,178.07,6.2636]
[1747230430309,28.88208236,178.16,178.07,6.2636]
[1747230430507,28.88208236,178.13,178.07,6.2636]
[1747230430730,28.88208236,178.12,178.07,6.2636]
[1747230431032,28.88208236,178.15,178.07,6.2636]
[1747230431212,28.88208236,178.16,178.07,6.2636]
[1747230431541,28.88208236,178.13,178.08,35.26]
[1747230431715,5.61419267,178.12,178.08,35.26]
[1747230432128,28.88208236,178.17,178.08,35.26]
[1747230432340,28.88208236,178.18,178.08,40.87528617]
[1747230432643,34.49406956,178.19,178.09,1.5048]
[1747230432821,28.88208236,178.18,178.09,1.5048]
[1747230433321,5.6119872,178.19,178.09,1.5048]
[1747230433935,28.88208236,178.18,178.09,1.5048]
[1747230434740,5.61164157,178.21,178.1,44.64964886]
[1747230435263,28.88208236,178.26,178.13,26.0]
[1747230435413,28.88208236,178.25,178.13,26.0]
[1747230435818,5.61009817,178.25,178.14,24.26321122]
[1747230436057,28.88208236,178.28,178.17,18.64964886]
[1747230436367,28.88208236,178.28,178.18,34.84]
[1747230436713,28.88208236,178.27,178.18,34.84]
[1747230437138,28.88208236,178.28,178.18,34.84]
[1747230437363,19.63093835,178.29,178.18,34.84]
[1747230437537,28.88208236,178.28,178.18,34.84]
[1747230437933,5.60946878,178.27,178.19,5.6119872]
[1747230438234,28.88208236,178.29,178.19,5.6119872]
[1747230438550,28.88208236,178.32,178.2,1.5404]
[1747230439034,28.88208236,178.29,178.2,1.5404]
[1747230439210,26.0,178.33,178.2,1.5404]
[1747230439410,14.01738155,178.35,178.2,36.0004]
[1747230439639,28.88208236,178.29,178.2,36.0004]
[1747230439843,28.88208236,178.27,178.2,36.0004]
[1747230440046,5.60978346,178.26,178.2,36.0004]
[1747230440430,5.60978346,178.26,178.21,34.3]
[1747230440616,28.88208236,178.25,178.2,1.5404]
[1747230440814,28.88208236,178.21,178.2,1.5404]
[1747230441134,28.88208236,178.22,178.2,1.5404]
[1747230441347,28.88208236,178.21,178.16,6.5664]
[1747230441660,19.63424211,178.26,178.16,6.5664]
[1747230441661,26.0,178.25,178.16,6.5664]
[1747230441835,28.88208236,178.21,178.16,6.5664]
[1747230442030,26.0,178.25,178.12,1.5335]
[1747230442031,19.64526267,178.16,178.12,1.5335]
[1747230442366,28.88208236,178.13,178.05,1.6176]
[1747230442654,28.88208236,178.08,178.05,1.6176]
[1747230442848,28.88208236,178.07,178.02,40.7303]
[1747230443425,28.88208236,178.07,178.02,6.5503]
[1747230443626,28.88208236,178.03,177.97,1.5467]
[1747230443856,28.88208236,178.02,177.97,35.5667]
[1747230444153,5.61727057,178.03,177.97,35.5667]
[1747230444330,28.88208236,178.01,177.97,1.5467]
[1747230444529,28.88208236,178.02,177.97,1.5467]
[1747230444962,28.88208236,178.0,177.97,1.5467]
[1747230445163,5.61727057,178.03,177.97,1.5467]
[1747230445843,5.61669739,178.05,177.97,1.5467]
[1747230446173,28.88208236,178.08,177.97,7.16553433]
[1747230446372,34.49722077,178.09,177.97,7.16553433]
[1747230446555,28.88208236,178.06,177.97,1.5467]
[1747230446729,28.88208236,178.05,177.98,33.72]
[1747230446933,28.88208236,178.08,177.98,33.72]
[1747230447142,28.88208236,178.07,177.98,33.72]
[1747230447331,28.88208236,178.08,177.98,33.72]
[1747230447532,14.03253214,178.16,177.98,33.72]
[1747230447771,28.88208236,178.1,177.98,33.72]
[1747230447976,28.88208236,178.1,177.99,18.64964886]
[1747230448143,52.42964886,178.18,178.01,18.64964886]
[1747230448144,28.88208236,178.12,178.01,18.64964886]
[1747230448339,34.49641244,178.12,178.0,19.66292134]
[1747230448529,28.88208236,178.14,178.01,18.64964886]
[1747230448743,28.88208236,178.15,178.01,18.64964886]
[1747230448978,28.88208236,178.15,178.03,18.64964886]
[1747230449278,28.88208236,178.12,178.02,6.3638]
[1747230449571,28.88208236,178.15,178.03,18.64964886]
[1747230449743,19.64200327,178.19,178.04,33.78]
[1747230449937,28.88208236,178.16,178.04,33.78]
[1747230450245,28.88208236,178.17,178.05,38.30704845]
[1747230450436,34.49438452,178.18,178.05,38.70559917]
[1747230450637,34.49438452,178.18,178.07,18.64964886]
[1747230450851,34.49438452,178.18,178.08,33.4]
[1747230450852,28.88208236,178.17,178.08,33.4]
[1747230451157,28.88208236,178.16,178.08,33.29855072]
[1747230451382,28.88208236,178.15,178.08,33.29855072]
[1747230451553,19.64305757,178.18,178.08,0.39855072]
[1747230451878,28.88208236,178.14,178.08,33.69855072]
[1747230452048,28.88208236,178.15,178.08,33.69855072]
[1747230452428,28.88208236,178.12,178.08,0.39855072]
[1747230452584,28.88208236,178.09,178.08,0.39855072]
[1747230452941,29.1664055,178.09,178.08,0.39855072]
[1747230453239,47.81605436,178.09,178.08,0.39855072]
[1747230454165,53.43119277,178.09,178.08,0.39855072]
[1747230454489,0.28432314,178.08,177.96,6.0407]
[1747230454661,28.88208236,178.0,177.96,6.0407]
[1747230455074,28.88208236,177.99,177.96,6.0407]
[1747230455278,28.88208236,178.0,177.96,6.0407]
[1747230455656,28.88208236,178.0,177.95,33.18]
[1747230455657,28.88208236,177.98,177.92,1.6648]
[1747230455871,28.88208236,177.95,177.92,1.6648]
[1747230456263,28.88208236,177.98,177.92,1.6648]
[1747230456463,28.88208236,177.98,177.92,7.28524267]
[1747230456782,28.88208236,177.98,177.92,7.28522585]
[1747230456958,28.88208236,178.0,177.92,7.28522585]
[1747230457162,59.78,178.06,177.92,7.28522585]
[1747230457395,28.88208236,177.99,177.92,1.6648]
[1747230457895,28.88208236,178.0,177.92,7.2852412]
[1747230458092,5.61639988,178.05,177.92,7.2852412]
[1747230458262,5.61482313,178.1,177.93,44.64964886]
[1747230458462,5.61482313,178.1,177.96,18.64964886]
[1747230458463,28.88208236,178.08,177.96,18.64964886]
[1747230458662,34.49690549,178.1,177.98,18.64964886]
[1747230458902,28.88208236,178.11,177.98,18.64964886]
[1747230459190,28.88208236,178.08,177.97,32.68]
[1747230459578,28.88208236,178.09,177.98,18.64964886]
[1747230459792,28.88208236,178.07,177.97,32.68]
[1747230460167,34.49771696,178.08,177.98,5.61860883]
[1747230460374,28.88208236,178.08,177.98,5.61860883]
[1747230460578,28.88208236,178.08,177.98,19.66513091]
[1747230460775,5.61514767,178.09,177.98,19.66513091]
[1747230460976,28.88208236,178.08,177.98,5.61860883]
[1747230461270,34.49723003,178.09,177.98,5.61860883]
[1747230461966,166.88208236,178.08,177.96,5.61924027]
[1747230462286,26.0,178.14,177.97,32.32]
[1747230462287,5.61703083,178.03,177.97,32.32]
[1747230462591,34.49911319,178.03,177.97,32.32]
[1747230462887,5.61703083,178.03,177.83,19.68134532]
[1747230463092,28.88208236,177.97,177.84,32.26]
[1747230463394,28.88208236,177.95,177.85,26.0]
[1747230463988,28.88208236,177.99,177.86,18.64964886]
[1747230464186,28.88208236,177.98,177.86,18.64964886]
[1747230464379,28.88208236,177.98,177.88,18.64964886]
[1747230464594,34.49974754,178.01,177.9,18.64964886]
[1747230464888,14.04030428,178.06,177.91,32.8]
[1747230464889,5.6174155,178.02,177.91,32.8]
[1747230465094,28.88208236,178.03,177.91,32.8]
[1747230466080,34.49942872,178.02,177.92,5.62050359]
[1747230466270,34.49942872,178.02,177.93,31.96]
[1747230466467,28.88208236,178.01,177.91,38.4206591]
[1747230466671,28.88208236,177.97,177.92,32.0]
[1747230466889,28.88208236,177.95,177.91,32.8]
[1747230467186,28.88208236,177.97,177.91,32.8]
[1747230467491,5.61705974,178.03,177.91,38.42071379]
[1747230467701,28.88208236,178.02,177.91,38.42071379]
[1747230467866,5.61705974,178.03,177.91,38.42071379]
[1747230468065,28.88208236,178.02,177.91,38.42071379]
[1747230468297,5.61639988,178.05,177.91,52.47276257]
[1747230468880,28.88208236,178.04,177.92,18.64964886]
[1747230469082,5.61545372,178.08,177.92,18.64964886]
[1747230469083,138.0,178.03,177.93,31.92]
[1747230469286,28.88208236,178.01,177.93,31.92]
[1747230469498,28.88208236,178.02,177.93,31.92]
[1747230469873,28.88208236,178.01,177.93,31.92]
[1747230470286,28.88208236,178.01,177.93,37.54010746]
[1747230470505,34.49978062,178.01,177.93,31.92]
[1747230470672,5.61769826,178.01,177.93,37.5401039]
[1747230470874,34.49978062,178.01,177.93,37.5401039]
[1747230471099,28.88208236,177.97,177.92,32.8]
[1747230471300,138.0,177.96,177.9,37.40106283]
[1747230471686,131.3334,177.96,177.9,51.4539015]
[1747230472072,131.3334,177.96,177.9,37.40106283]
[1747230472596,131.3334,177.96,177.9,51.4539015]
[1747230472798,131.3334,177.96,177.9,37.40106283]
[1747230473366,131.3334,177.96,177.89,8.0613]
[1747230473367,131.3334,177.95,177.89,8.0613]
[1747230473592,160.21548236,177.95,177.89,8.0613]
[1747230473799,28.88208236,177.93,177.89,8.0613]
[1747230474002,5.61925331,177.96,177.89,8.0613]
[1747230474304,28.88208236,177.94,177.89,8.0613]
[1747230474472,28.88208236,177.93,177.89,8.0613]
[1747230474676,28.88208236,177.94,177.89,8.0613]
[1747230474982,28.88208236,177.94,177.89,13.68270008]
[1747230475189,28.88208236,177.94,177.89,8.0613]
[1747230475521,28.88208236,177.92,177.89,8.0613]
[1747230475688,54.88208236,177.9,177.81,10.2205199]
[1747230476024,28.88208236,177.87,177.81,10.2205199]
[1747230476175,28.88208236,177.88,177.81,41.7005199]
[1747230476384,34.50394166,177.88,177.81,47.32442211]
[1747230476587,28.88208236,177.86,177.81,10.2205199]
[1747230476792,28.88208236,177.83,177.81,10.2205199]
[1747230476982,19.676278,177.88,177.81,10.2205199]
[1747230477182,5.6218593,177.88,177.81,15.84437265]
[1747230477373,28.88208236,177.88,177.81,10.2205199]
[1747230477569,28.88208236,177.84,177.81,10.2205199]
[1747230478019,28.88208236,177.83,177.81,8.6697199]
[1747230478403,28.88208236,177.82,177.81,8.6697199]
[1747230480422,34.79006987,177.82,177.81,8.6697199]
[1747230480919,28.88208236,177.82,177.81,8.6697199]
[1747230481323,34.50574673,177.82,177.81,8.6697199]
[1747230481524,28.88208236,177.86,177.81,8.6697199]
[1747230481699,28.88208236,177.88,177.81,39.9297199]
[1747230481901,28.88208236,177.89,177.82,5.62366437]
[1747230482106,28.88208236,177.9,177.82,5.62366437]
[1747230482533,28.88208236,177.95,177.82,45.68282531]
[1747230482698,28.88208236,177.97,177.83,18.64964886]
[1747230483022,5.61768684,178.01,177.85,26.0]
[1747230483223,28.88208236,177.98,177.86,18.64964886]
[1747230483398,28.88208236,177.97,177.86,18.64964886]
[1747230483711,28.88208236,177.93,177.82,45.68282531]
[1747230483927,28.88208236,177.94,177.87,31.24]
[1747230484153,19.66184166,178.01,177.87,31.24]
[1747230484421,28.88208236,177.93,177.87,31.24]
[1747230484646,28.88208236,177.92,177.87,31.24]
[1747230484813,28.88208236,177.92,177.81,16.2830199]
[1747230484814,28.88208236,177.88,177.81,16.2830199]